bitfinex-derivatives/quotes_SOLF0:USTF0_20250818
["timestamp","ask_amount","ask_price","bid_price","bid_amount"]
[1755499387049,20.16781929,180.96,180.77,5.5281]
[1755499387050,3.04,180.84,180.77,5.5281]
[1755499387354,3.04,180.84,180.74,125.0]
[1755499387650,3.04,180.84,180.78,5.5277]
[1755499387849,6.69781929,180.84,180.74,125.0]
[1755499388151,3.04,180.83,180.74,125.0]
[1755499388446,3.65781929,180.78,180.74,118.64]
[1755499388643,3.65781929,180.75,180.74,112.28]
[1755499388849,3.65781929,180.75,180.6,144.56]
[1755499389045,3.65781929,180.75,180.66,2.9]
[1755499389254,144.74,180.8,180.63,2.9]
[1755499389446,3.65781929,180.74,180.63,2.9]
[1755499389643,0.96329513,180.76,180.57,2.9]
[1755499389850,4.0509205,180.75,180.61,2.9]
[1755499390056,4.0509205,180.74,180.57,2.9]
[1755499390345,3.65781929,180.73,180.52,144.94]
[1755499390646,0.96329513,180.76,180.47,2.9]
[1755499390847,0.96329513,180.76,180.63,2.9]
[1755499391740,3.65781929,180.72,180.61,2.9]
[1755499392149,3.65781929,180.69,180.57,2.9]
[1755499392343,5.71669783,180.72,180.57,2.9]
[1755499392542,5.71669783,180.74,180.54,2.9]
[1755499392740,5.71669783,180.75,180.55,2.9]
[1755499392945,0.96329513,180.76,180.51,153.98]
[1755499392946,0.96329513,180.76,180.58,5.71669783]
[1755499393147,0.96329513,180.76,180.59,2.9]
[1755499393447,0.96329513,180.76,180.61,5.5329]
[1755499393750,0.96329513,180.76,180.6,2.9]
[1755499393751,5.71669783,180.72,180.6,2.9]
[1755499393947,5.71669783,180.68,180.49,0.96333513]
[1755499394151,5.71669783,180.69,180.5,5.71669783]
[1755499394345,5.71669783,180.69,180.51,2.9]
[1755499394651,155.22,180.71,180.55,2.9]
[1755499394851,5.71669783,180.66,180.55,2.9]
[1755499395241,5.71669783,180.67,180.55,2.9]
[1755499395852,4.00628283,180.66,180.46,2.9]
[1755499396055,4.00628283,180.66,180.45,0.96372196]
[1755499396056,5.71669783,180.63,180.45,0.96372196]
[1755499396351,6.12136422,180.7,180.5,2.9]
[1755499396546,5.71669783,180.64,180.52,5.5359]
[1755499396754,5.71669783,180.64,180.53,2.9]
[1755499397051,5.71669783,180.64,180.4,0.96404233]
[1755499397052,4.04363966,180.63,180.4,0.96404233]
[1755499397252,4.04363966,180.62,180.46,2.9]
[1755499397445,5.71669783,180.6,180.46,2.9]
[1755499397642,371.58,180.64,180.46,2.9]
[1755499397842,4.03725536,180.63,180.46,2.9]
[1755499398146,5.5323,180.64,180.52,5.71669783]
[1755499398352,5.71669783,180.73,180.56,5.71669783]
[1755499398647,5.5314,180.67,180.57,2.9]
[1755499398850,5.71669783,180.73,180.57,2.9]
[1755499399048,5.71669783,180.69,180.57,2.9]
[1755499399248,5.71669783,180.7,180.59,5.5337]
[1755499399446,5.71669783,180.66,180.47,377.29669783]
[1755499399651,5.71669783,180.66,180.52,2.9]
[1755499399955,5.71669783,180.62,180.53,2.9]
[1755499400454,5.71669783,180.62,180.4,2.9]
[1755499400455,5.71669783,180.58,180.4,2.9]
[1755499400651,5.71669783,180.54,180.41,2.9]
[1755499401154,5.71669783,180.54,180.32,5.71669783]
[1755499401350,0.96389547,180.62,180.36,5.71669783]
[1755499401549,0.96389547,180.62,180.45,2.9]
[1755499401550,5.71669783,180.57,180.45,2.9]
[1755499402056,158.14,180.61,180.47,3.14]
[1755499402351,5.71669783,180.6,180.47,3.14]
[1755499402555,0.96389547,180.62,180.33,599.96425603]
[1755499402556,0.96389547,180.62,180.55,3.14]
[1755499403357,5.71669783,180.68,180.55,3.14]
[1755499403653,0.9636419,180.66,180.47,3.14]
[1755499403852,5.71669783,180.63,180.47,3.14]
[1755499404057,5.71669783,180.64,180.51,5.5361]
[1755499404258,5.71669783,180.6,180.52,3.14]
[1755499404458,5.71669783,180.63,180.52,3.14]
[1755499404659,5.71669783,180.65,180.56,3.14]
[1755499404848,5.71669783,180.65,180.46,3.14]
[1755499405058,0.96362856,180.69,180.46,3.14]
[1755499405254,5.71669783,180.65,180.54,3.14]
[1755499405454,5.71669783,180.72,180.54,3.14]
[1755499405658,0.96385542,180.63,180.62,5.5327]
[1755499405851,0.96385542,180.63,180.49,537.0]
[1755499406059,5.71669783,180.72,180.54,5.71669783]
[1755499406255,532.72,180.75,180.54,5.71669783]
[1755499406256,532.72,180.75,180.56,3.14]
[1755499406457,371.84,180.75,180.59,3.14]
[1755499406858,5.71669783,180.74,180.64,3.14]
[1755499407058,371.84,180.75,180.64,3.14]
[1755499407059,5.71669783,180.73,180.64,3.14]
[1755499407255,5.71669783,180.73,180.6,3.14]
[1755499407457,5.71669783,180.65,180.48,91.09520232]
[1755499407653,5.71669783,180.65,180.57,3.14]
[1755499408263,9.67571479,180.67,180.57,3.14]
[1755499408562,9.67571479,180.72,180.57,3.14]
[1755499408760,172.03900992,180.73,180.57,3.14]
[1755499409161,10.63900992,180.73,180.57,3.14]
[1755499409361,9.67571479,180.68,180.57,3.14]
[1755499409862,9.67571479,180.68,180.44,0.96317516]
[1755499410059,4.02412627,180.67,180.45,3.14]
[1755499410261,9.67571479,180.68,180.52,5.5356]
[1755499410459,9.67571479,180.63,180.45,3.14]
[1755499410768,9.67571479,180.63,180.49,5.5365]
[1755499411067,9.67571479,180.63,180.5,3.14]
[1755499411262,170.87571479,180.7,180.5,3.14]
[1755499411468,0.96382873,180.66,180.57,3.14]
[1755499412567,9.67571479,180.65,180.44,3.14]
[1755499412766,10.63954352,180.66,180.44,3.14]
[1755499413667,10.63954352,180.66,180.53,3.14]
[1755499413867,0.96382873,180.66,180.53,3.14]
[1755499414570,4.03083612,180.65,180.53,3.14]
[1755499414870,0.96382873,180.66,180.53,3.14]
[1755499415061,4.03084196,180.65,180.53,3.14]
[1755499415263,0.96382873,180.66,180.53,3.14]
[1755499415458,4.03351466,180.65,180.53,3.14]
[1755499415658,0.96382873,180.66,180.53,3.14]
[1755499415865,4.03351466,180.65,180.53,3.14]
[1755499416164,0.96382873,180.66,180.53,3.14]
[1755499416364,13.71225351,180.65,180.53,3.14]
[1755499416671,4.03654636,180.64,180.53,3.14]
[1755499416870,4.03636584,180.63,180.53,3.14]
[1755499417072,9.67571479,180.65,180.53,3.14]
[1755499417371,4.03636584,180.64,180.53,3.14]
[1755499417568,4.03636584,180.63,180.53,3.14]
[1755499417765,9.67571479,180.65,180.53,3.14]
[1755499417967,4.03990904,180.64,180.42,372.84389547]
[1755499418161,4.03990904,180.63,180.46,3.14]
[1755499418359,4.03990904,180.62,180.5,3.14]
[1755499418563,161.08,180.64,180.5,3.14]
[1755499418766,4.04395059,180.63,180.52,5.5358]
[1755499418969,9.67571479,180.65,180.53,3.14]
[1755499419166,4.04414699,180.64,180.53,3.14]
[1755499419362,4.04414699,180.63,180.53,3.14]
[1755499419564,9.67571479,180.65,180.53,3.14]
[1755499419769,9.67571479,180.65,180.55,5.5348]
[1755499419971,0.96382873,180.66,180.56,3.14]
[1755499420270,160.78,180.74,180.56,3.14]
[1755499420473,4.05572417,180.73,180.56,3.14]
[1755499420771,4.05572417,180.72,180.6,5.5331]
[1755499420960,161.74337513,180.74,180.56,3.14]
[1755499421159,0.96337513,180.74,180.58,9.67571479]
[1755499421371,6.12136422,180.82,180.58,9.67571479]
[1755499421571,4.06225167,180.81,180.59,3.14]
[1755499421761,4.06225167,180.8,180.59,3.14]
[1755499422063,371.96,180.85,180.72,3.14]
[1755499422264,4.06294708,180.84,180.72,3.14]
[1755499422466,4.06294708,180.83,180.72,3.14]
[1755499422671,4.06294708,180.82,180.72,3.14]
[1755499422870,121.22939067,180.89,180.77,5.5279]
[1755499423068,4.06909744,180.88,180.78,3.14]
[1755499423273,4.06909744,180.87,180.78,3.14]
[1755499423573,4.06909744,180.86,180.78,3.14]
[1755499423768,6.12136422,180.92,180.78,3.14]
[1755499424073,3.1,180.94,180.78,3.14]
[1755499424467,3.1,180.94,180.83,5.5261]
[1755499424668,3.1,180.94,180.84,3.14]
[1755499425065,3.1,180.94,180.85,3.14]
[1755499425971,0.96216321,180.95,180.85,3.14]
[1755499426169,3.1,180.97,180.85,3.14]
[1755499426567,3.1,180.94,180.86,3.14]
[1755499426874,3.1,180.93,180.86,3.14]
[1755499427371,0.96209671,180.96,180.86,3.14]
[1755499427582,3.1,181.01,180.86,3.14]
[1755499427967,3.1,181.0,180.86,3.14]
[1755499428169,3.1,181.0,180.87,5.5251]
[1755499428372,9.67571479,181.0,180.88,3.14]
[1755499428574,3.1,180.99,180.88,3.14]
[1755499429070,3.1,180.98,180.88,3.14]
[1755499429271,9.22136422,180.98,180.88,3.14]
[1755499429482,3.1,180.97,180.88,3.14]
[1755499429669,3.1,180.95,180.8,3.14]
[1755499430371,12.77571479,180.95,180.8,3.14]
[1755499430574,3.1,180.94,180.8,3.14]
[1755499430971,3.1,180.92,180.8,3.14]
[1755499431279,3.1,180.92,180.81,5.527]
[1755499431471,3.1,180.92,180.82,3.14]
[1755499431976,3.1,180.92,180.72,3.14]
[1755499432172,2.98,180.95,180.77,2.98]
[1755499432379,2.98,180.95,180.76,9.67571479]
[1755499432581,7.08328807,181.01,180.83,2.98]
[1755499432877,2.98,180.97,180.87,5.5251]
[1755499433080,2.98,180.97,180.88,2.98]
[1755499433272,2.98,180.96,180.88,2.98]
[1755499433673,2.98,180.96,180.84,2.98]
[1755499434071,2.98,180.96,180.85,2.98]
[1755499435874,4.04120899,180.95,180.85,2.98]
[1755499436077,4.04120899,180.94,180.85,2.98]
[1755499436282,2.98,180.96,180.86,2.98]
[1755499436675,0.96192385,181.01,180.86,2.98]
[1755499436980,4.03950769,181.0,180.86,2.98]
[1755499437277,2.98,180.99,180.86,2.98]
[1755499437879,2.98,180.99,180.89,5.5244]
[1755499438080,2.98,180.99,180.9,2.98]
[1755499439780,2.98,180.97,180.9,2.98]
[1755499440183,2.98,180.97,180.87,2.98]
[1755499440386,2.98,181.0,180.87,2.98]
[1755499441284,0.96185738,181.02,180.87,2.98]
[1755499441488,2.98,181.03,180.87,2.98]
[1755499442787,2.98,181.03,180.95,2.98]
[1755499443400,372.82171118,181.05,180.95,2.98]
[1755499443401,0.96171118,181.05,180.95,2.98]
[1755499443595,2.98,181.06,180.95,2.98]
[1755499444100,2.98,181.06,180.86,2.98]
[1755499444299,2.98,181.06,180.89,9.67571479]
[1755499444493,2.98,181.06,180.98,5.5216]
[1755499444691,3.94147205,181.08,180.9,2.98]
[1755499444888,2.98,181.08,181.01,2.98]
[1755499446094,2.98,181.11,181.01,2.98]
[1755499446601,2.98,181.11,181.02,2.98]
[1755499447495,2.98,181.11,181.05,5.5196]
[1755499447696,2.98,181.13,181.06,2.98]
[1755499449400,2.98,181.13,181.01,2.98]
[1755499449597,4.01957437,181.12,181.01,2.98]
[1755499449799,2.98,181.1,180.95,371.18]
[1755499450006,2.98,181.06,180.87,2.98]
[1755499450503,2.98,181.06,180.94,2.98]
[1755499451098,2.98,181.06,180.87,2.98]
[1755499451397,162.56,181.09,180.87,2.98]
[1755499451609,2.98,181.08,180.92,2.98]
[1755499452201,2.98,181.08,180.99,2.98]
[1755499454901,9.67571479,181.06,180.96,2.98]
[1755499455101,2.98,181.05,180.96,2.98]
[1755499458205,2.98,181.05,180.87,2.98]
[1755499458507,2.98,181.02,180.87,2.98]
[1755499459807,2.98,181.01,180.88,5.5248]
[1755499460106,2.98,181.01,180.89,2.98]
[1755499460606,4.04394637,181.0,180.89,2.98]
[1755499460806,2.98,180.98,180.89,2.98]
[1755499461108,2.98,180.96,180.89,2.98]
[1755499461308,4.04394637,180.95,180.89,2.98]
[1755499461506,2.98,180.96,180.89,2.98]
[1755499462204,4.06038304,180.95,180.89,2.98]
[1755499462410,4.06038304,180.94,180.89,2.98]
[1755499462606,2.98,180.96,180.89,2.98]
[1755499462807,4.06126093,180.95,180.89,2.98]
[1755499463012,4.06126093,180.94,180.9,2.91]
[1755499463216,7.14126093,180.93,180.87,2.91]
[1755499463408,7.14126093,180.92,180.88,2.91]
[1755499463609,4.06126093,180.91,180.84,5.5258]
[1755499463911,4.06126093,180.9,180.89,2.91]
[1755499464214,4.06126093,180.9,180.84,5.5258]
[1755499464414,4.06126093,180.89,180.88,2.91]
[1755499464913,4.08118653,180.89,180.88,2.91]
[1755499468713,0.90118653,180.89,180.88,3.47]
[1755499468915,5.92793074,180.93,180.89,2.91]
[1755499469113,9.00793074,180.93,180.89,2.91]
[1755499469317,5.92793074,180.93,180.89,2.91]
[1755499469514,5.92793074,180.93,180.89,5.5245]
[1755499469719,5.92793074,180.93,180.83,156.92]
[1755499469720,5.92793074,180.93,180.92,2.91]
[1755499470014,8.83208159,180.93,180.92,2.91]
[1755499470407,8.83208159,180.93,180.82,371.1]
[1755499470712,9.0958446,180.91,180.83,2.91]
[1755499471023,9.0958446,180.91,180.85,5.5255]
[1755499471212,9.0958446,180.91,180.83,2.91]
[1755499471513,6.0158446,180.94,180.87,5.5249]
[1755499471723,12.00081902,180.93,180.88,2.91]
[1755499472018,3.08,180.92,180.88,2.91]
[1755499472319,3.08,180.92,180.87,5.5251]
[1755499472522,3.08,180.92,180.82,371.1]
[1755499472724,6.0158446,180.93,180.91,2.91]
[1755499473019,6.0158446,180.93,180.83,2.91]
[1755499473210,3.08,180.93,180.83,2.91]
[1755499473612,9.0958446,180.95,180.83,156.52]
[1755499473817,3.08,180.94,180.91,2.91]
[1755499474010,3.08,180.94,180.88,2.91]
[1755499474414,6.0158446,180.96,180.89,2.91]
[1755499474614,3.08,180.95,180.89,2.91]
[1755499475217,6.0158446,180.97,180.89,5.5243]
[1755499475418,3.08,180.94,180.91,2.91]
[1755499475614,3.08,180.96,180.91,5.5239]
[1755499475817,3.08,180.96,180.92,2.91]
[1755499476020,3.08,180.95,180.93,2.91]
[1755499477124,6.0158446,181.0,180.85,155.96]
[1755499477320,3.08,180.98,180.87,2.91]
[1755499477714,3.08,180.98,180.86,5.6997875]
[1755499477915,3.08,180.98,180.87,2.91]
[1755499478114,3.08,180.98,180.87,158.69]
[1755499478325,3.08,180.98,180.93,2.91]
[1755499478525,3.08,180.97,180.87,155.78]
[1755499478719,3.08,180.97,180.95,2.91]
[1755499479426,121.2438213,181.03,180.95,2.91]
[1755499479628,3.08,180.96,180.93,2.91]
[1755499479921,3.08,180.95,180.87,155.58]
[1755499480222,3.08,181.02,180.94,2.91]
[1755499480821,3.08,181.0,180.87,2.91]
[1755499481028,3.08,180.98,180.91,2.91]
[1755499481222,3.08,180.96,180.86,5.6997875]
[1755499481423,3.08,180.95,180.87,2.91]
[1755499481727,3.08,181.01,180.92,2.91]
[1755499481923,3.08,180.99,180.92,2.91]
[1755499482123,3.08,180.99,180.93,5.5233]
[1755499482324,3.08,180.97,180.95,2.91]
[1755499482624,3.08,180.96,180.95,2.91]
[1755499482820,121.2438213,181.03,180.95,2.91]
[1755499483025,3.08,181.01,180.95,2.91]
[1755499485216,3.08,181.01,180.95,8.4327]
[1755499485422,3.08,181.01,180.88,2.91]
[1755499486826,3.08,180.99,180.88,2.91]
[1755499487123,4.09276426,180.98,180.88,2.91]
[1755499487325,4.09249317,180.97,180.86,2.91]
[1755499487519,3.08,180.95,180.86,8.4355]
[1755499487725,3.08,180.95,180.86,2.91]
[1755499488729,3.08,180.95,180.82,371.1]
[1755499488929,3.08,180.95,180.87,2.91]
[1755499490029,3.08,180.95,180.89,2.91]
[1755499490927,3.08,181.02,180.83,2.91]
[1755499491128,3.08,181.0,180.83,2.91]
[1755499491631,3.08,181.0,180.86,2.91]
[1755499492833,3.08,181.0,180.95,2.89]
[1755499493134,3.01,181.02,180.96,2.89]
[1755499493431,121.2438213,181.03,180.94,2.89]
[1755499493432,3.01,181.0,180.94,2.89]
[1755499494425,3.01,181.0,180.89,2.89]
[1755499494630,3.01,180.98,180.89,2.89]
[1755499494928,3.01,180.96,180.89,2.89]
[1755499495127,4.09402348,180.95,180.89,2.89]
[1755499495332,3.01,180.93,180.89,2.89]
[1755499495830,3.01,180.92,180.82,371.1]
[1755499496130,3.01,180.92,180.9,2.89]
[1755499496328,6.0158446,181.0,180.82,371.1]
[1755499496535,3.01,180.91,180.88,2.89]
[1755499496732,3.01,180.98,180.84,2.89]
[1755499496934,15.65828866,180.99,180.84,2.89]
[1755499496935,3.01,180.96,180.84,2.89]
[1755499497232,3.01,180.94,180.84,2.89]
[1755499497431,3.01,180.92,180.84,2.89]
[1755499497735,3.01,180.9,180.84,2.89]
[1755499498138,3.01,180.9,180.82,371.1]
[1755499498333,6.0158446,180.97,180.82,371.1]
[1755499498526,3.01,180.89,180.86,2.89]
[1755499498731,3.01,180.96,180.84,5.526]
[1755499498925,3.01,180.94,180.85,2.89]
[1755499499128,3.01,180.92,180.85,2.89]
[1755499499332,4.0971008,180.91,180.85,2.89]
[1755499499529,3.01,180.89,180.86,2.89]
[1755499499735,3.01,180.88,180.86,2.89]
[1755499500243,3.01,180.96,180.85,2.89]
[1755499500433,3.01,180.94,180.85,2.89]
[1755499500744,3.01,180.92,180.85,2.89]
[1755499501036,3.01,180.9,180.74,371.22]
[1755499501239,3.01,180.88,180.78,2.89]
[1755499501539,4.09870848,180.87,180.82,2.89]
[1755499501834,3.01,180.85,180.75,5.5287]
[1755499502037,3.01,180.83,180.76,2.89]
[1755499503431,3.01,180.83,180.77,2.89]
[1755499503835,3.01,180.86,180.77,2.89]
[1755499504033,3.01,180.86,180.81,2.89]
[1755499504340,9.64244406,180.94,180.73,2.89]
[1755499504341,3.01,180.85,180.73,2.89]
[1755499504635,3.01,180.85,180.81,2.89]
[1755499504947,3.01,180.84,180.82,2.89]
[1755499505239,3.01,180.83,180.82,2.89]
[1755499505636,3.01,180.85,180.82,2.89]
[1755499505842,3.01,180.84,180.82,2.89]
[1755499506343,3.01,180.84,180.72,154.84]
[1755499506635,16.59,180.96,180.72,154.84]
[1755499506636,3.01,180.93,180.72,154.84]
[1755499506936,3.01,180.91,180.83,5.5264]
[1755499507136,3.01,180.89,180.84,2.89]
[1755499507332,3.01,180.89,180.73,2.89]
[1755499508240,3.01,180.89,180.83,2.89]
[1755499508736,3.01,180.89,180.83,8.4163]
[1755499509140,181.03244406,180.98,180.85,5.5257]
[1755499509141,15.65828866,180.98,180.85,5.5257]
[1755499509337,4.09067415,180.97,180.86,2.89]
[1755499509541,3.01,180.87,180.78,2.89]
[1755499510340,15.65828866,180.98,180.85,2.89]
[1755499510341,3.01,180.9,180.85,2.89]
[1755499510640,3.01,180.88,180.85,2.89]
[1755499510837,3.01,180.87,180.85,2.89]
[1755499513035,3.01,180.87,180.85,5.5257]
[1755499513340,3.01,180.87,180.86,2.89]
[1755499513533,8.5353,180.87,180.84,5.526]
[1755499513731,8.5353,180.87,180.85,2.89]
[1755499513732,3.01,180.86,180.85,2.89]
[1755499514831,17.0589446,180.99,180.77,2.89]
[1755499514832,3.01,180.91,180.77,2.89]
[1755499515142,3.01,180.89,180.77,8.4179]
[1755499515443,3.01,180.87,180.77,8.4179]
[1755499515845,3.01,180.87,180.78,5.5279]
[1755499516244,3.01,180.85,180.77,2.89]
[1755499516838,3.01,180.85,180.77,8.418]
[1755499517449,3.01,180.85,180.78,8.4178]
[1755499518047,3.01,180.85,180.78,2.89]
[1755499520651,3.01,180.85,180.74,371.34]
[1755499520854,3.01,180.85,180.76,2.89]
[1755499521052,8.5375,180.8,180.78,2.89]
[1755499521249,3.01,180.8,180.74,371.34]
[1755499521456,3.01,180.84,180.75,2.89]
[1755499521659,3.01,180.89,180.75,2.89]
[1755499521955,5.701249,180.87,180.75,2.89]
[1755499522158,2.89,180.85,180.76,5.5284]
[1755499522352,2.89,180.85,180.77,3.09]
[1755499522658,11.85586149,180.99,180.71,153.4]
[1755499522659,2.89,180.82,180.73,3.09]
[1755499523655,2.89,180.82,180.73,5.5292]
[1755499523858,2.89,180.82,180.74,3.09]
[1755499524466,2.89,180.82,180.75,3.09]
[1755499524862,2.89,180.82,180.77,5.5281]
[1755499525060,2.89,180.86,180.78,3.09]
[1755499525962,2.89,180.86,180.76,3.09]
[1755499526466,2.89,180.86,180.76,8.6184]
[1755499526659,2.89,180.86,180.77,3.09]
[1755499526856,2.89,180.86,180.76,3.09]
[1755499527056,4.08855067,180.85,180.74,3.09]
[1755499527264,2.89,180.82,180.74,3.09]
[1755499529062,2.89,180.81,180.74,3.09]
[1755499529459,2.89,180.75,180.67,152.96]
[1755499529665,2.89,180.75,180.68,3.09]
[1755499530162,5.701249,180.78,180.53,16.6065]
[1755499530364,2.89,180.76,180.65,3.09]
[1755499530556,2.89,180.74,180.65,3.09]
[1755499531969,2.89,180.74,180.67,5.5311]
[1755499532159,2.89,180.74,180.68,3.09]
[1755499532763,2.89,180.74,180.67,3.09]
[1755499532958,4.08554004,180.73,180.63,5.5324]
[1755499533162,2.89,180.71,180.52,525.7]
[1755499533460,2.89,180.69,180.56,3.09]
[1755499533661,2.89,180.67,180.56,3.09]
[1755499534163,2.89,180.67,180.61,5.533]
[1755499534465,2.89,180.67,180.62,3.09]
[1755499535167,5.701249,180.75,180.55,5.701249]
[1755499535363,2.89,180.73,180.56,3.09]
[1755499535563,2.89,180.71,180.64,3.09]
[1755499535763,4.07776685,180.7,180.64,3.09]
[1755499535959,2.89,180.71,180.64,3.09]
[1755499536160,2.89,180.71,180.62,5.5327]
[1755499536161,2.89,180.69,180.56,3.09]
[1755499536356,2.89,180.67,180.56,3.09]
[1755499536562,2.89,180.67,180.6,3.09]
[1755499537172,2.89,180.67,180.61,3.09]
[1755499537663,5.5321,180.65,180.55,154.8]
[1755499537968,2.89,180.67,180.56,3.09]
[1755499538168,5.701249,180.73,180.63,5.5325]
[1755499538370,2.89,180.71,180.64,3.09]
[1755499538576,2.89,180.69,180.64,3.09]
[1755499538865,2.89,180.69,180.59,3.09]
[1755499539068,2.89,180.67,180.59,3.09]
[1755499539268,5.5327,180.63,180.59,8.6236]
[1755499539570,2.89,180.62,180.6,3.09]
[1755499539869,5.701249,180.73,180.6,3.09]
[1755499539870,5.5331,180.61,180.6,3.09]
[1755499540181,2.89,180.68,180.6,3.09]
[1755499540470,5.701249,180.69,180.58,3.09]
[1755499540471,5.5331,180.61,180.58,3.09]
[1755499540768,2.89,180.64,180.52,371.48]
[1755499540965,2.89,180.6,180.53,3.09]
[1755499541374,2.89,180.62,180.53,3.09]
[1755499542564,4.06547189,180.61,180.53,3.09]
[1755499542767,2.89,180.62,180.52,3.09]
[1755499543068,2.89,180.6,180.52,3.09]
[1755499543571,2.89,180.6,180.56,3.09]
[1755499543770,2.89,180.6,180.5,5.701249]
[1755499543970,2.89,180.67,180.56,3.09]
[1755499544174,2.89,180.65,180.46,156.26]
[1755499544369,2.89,180.63,180.47,3.09]
[1755499544667,2.89,180.63,180.54,5.5352]
[1755499544973,2.89,180.63,180.55,3.09]
[1755499545361,2.89,180.63,180.47,3.09]
[1755499545677,2.89,180.61,180.47,3.09]
[1755499545869,5.701249,180.58,180.42,455.24895496]
[1755499546171,5.701249,180.58,180.38,3.09]
[1755499546172,2.89,180.56,180.38,3.09]
[1755499546373,4.05909001,180.55,180.44,5.5382]
[1755499546572,2.89,180.54,180.45,3.09]
[1755499547073,2.89,180.54,180.42,3.09]
[1755499547864,2.89,180.54,180.5,5.5363]
[1755499548068,2.89,180.56,180.44,5.701249]
[1755499548469,6.0158446,180.66,180.39,11.0795]
[1755499548470,2.89,180.58,180.56,3.09]
[1755499549065,5.701249,180.66,180.48,5.701249]
[1755499549270,2.89,180.64,180.49,3.09]
[1755499549472,2.89,180.64,180.53,3.09]
[1755499550164,2.89,180.66,180.56,5.701249]
[1755499550364,377.581249,180.77,180.57,3.09]
[1755499550567,377.581249,180.77,180.49,11.0732]
[1755499550568,2.89,180.71,180.61,3.09]
[1755499551072,2.89,180.71,180.67,5.5313]
[1755499551272,2.89,180.7,180.67,8.6213]
[1755499551670,2.89,180.7,180.67,3.09]
[1755499551870,371.88,180.77,180.6,5.701249]
[1755499552072,2.89,180.69,180.61,3.09]
[1755499552271,2.89,180.69,180.57,5.5343]
[1755499552479,2.9,180.67,180.57,3.04]
[1755499552677,2.9,180.65,180.57,3.04]
[1755499552975,2.9,180.57,180.41,3.04]
[1755499553173,2.9,180.55,180.41,3.04]
[1755499553474,6.0158446,180.62,180.44,3.04]
[1755499553776,2.9,180.57,180.47,3.04]
[1755499553972,371.84,180.64,180.46,5.701249]
[1755499553973,2.9,180.56,180.54,3.04]
[1755499554579,2.9,180.56,180.52,5.5358]
[1755499554774,2.9,180.56,180.53,3.04]
[1755499556075,2.9,180.55,180.38,11.08]
[1755499556382,2.9,180.62,180.51,3.04]
[1755499556679,2.9,180.6,180.51,3.04]
[1755499556869,4.05940322,180.61,180.51,3.04]
[1755499556870,2.9,180.58,180.51,3.04]
[1755499557072,2.9,180.58,180.45,3.04]
[1755499557377,2.9,180.56,180.45,3.04]
[1755499557684,2.9,180.56,180.42,3.04]
[1755499557982,2.9,180.54,180.45,5.5379]